fUSD/lending_fUSD_20240119
["ID","MTS","AMOUNT","RATE_DAILY","PERIOD"]
[312148524,1705669857328,-500.0,0.00022191,2]
[312148525,1705669857340,-506.59,0.00022191,2]
[312148526,1705669857350,-754.61,0.00022191,2]
[312148527,1705669857361,-1705.42,0.00022191,2]
[312148528,1705669857372,-780.91,0.00022191,2]
[312148529,1705669857382,-500.0,0.00022191,2]
[312148530,1705669857393,-591.74,0.00022191,2]
[312148531,1705669857403,-574.32,0.00022191,2]
[312148532,1705669857413,-1313.23,0.00022191,2]
[312148533,1705669857424,-500.0,0.00022191,2]
[312148534,1705669857434,-500.0,0.00022191,2]
[312148535,1705669857444,-2028.69,0.00022191,2]
[312148536,1705669857454,-500.0,0.00022191,2]
[312148537,1705669857465,-633.91,0.00022191,2]
[312148538,1705669857474,-9076.22,0.00022191,2]
[312148539,1705669857485,-500.0,0.00022191,2]
[312148540,1705669857495,-924.14,0.00022191,2]
[312148541,1705669857505,-526.59,0.00022191,2]
[312148542,1705669857515,-500.0,0.00022191,2]
[312148543,1705669857525,-2029.72,0.00022191,2]
[312148544,1705669857535,-981.27,0.00022191,2]
[312148545,1705669857545,-500.0,0.00022191,2]
[312148546,1705669857556,-826.71,0.00022191,2]
[312148547,1705669857567,-1960.9,0.00022191,2]
[312148548,1705669857577,-500.0,0.00022191,2]
[312148549,1705669857589,-4783.55,0.00022191,2]
[312148550,1705669857601,-835.31,0.00022191,2]
[312148551,1705669857611,-500.0,0.00022191,2]
[312148552,1705669857622,-1577.31,0.00022191,2]
[312148553,1705669857632,-5207.41,0.00022191,2]
[312148554,1705669857643,-500.0,0.00022191,2]
[312148555,1705669857653,-500.0,0.00022191,2]
[312148556,1705669857663,-500.0,0.00022191,2]
[312148557,1705669858080,-550.22,0.00022191,2]
[312148558,1705669858091,-3855.72,0.00022191,2]
[312148559,1705669858102,-500.0,0.00022191,2]
[312148560,1705669858112,-507.28929418,0.00022191,2]
[312148561,1705669858123,-500.0,0.00022191,2]
[312148562,1705669858133,-685.58,0.00022191,2]
[312148563,1705669858143,-1179.28,0.00022191,2]
[312148564,1705669858154,-793.67,0.00022191,2]
[312148565,1705669858164,-813.09,0.00022191,2]
[312148566,1705669858174,-583.17,0.00022191,2]
[312148567,1705669858184,-2276.82,0.00022191,2]
[312148568,1705669858194,-3177.97,0.00022191,2]
[312148569,1705669858204,-3710.39,0.00022191,2]
[312148570,1705669858214,-500.0,0.00022191,2]
[312148571,1705669858223,-500.0,0.00022191,2]
[312148572,1705669858233,-2628.92,0.00022191,2]
[312148573,1705669858244,-660.03,0.00022191,2]
[312148574,1705669858254,-550.62,0.00022191,2]
[312148575,1705669858263,-19369.32,0.00022191,2]
[312148576,1705669858273,-638.69,0.00022191,2]
[312148577,1705669858283,-500.0,0.00022191,2]
[312148578,1705669858293,-1034.13,0.00022191,2]
[312148579,1705669858303,-2000.88,0.00022191,2]
[312148580,1705669858313,-2148.61,0.00022191,2]
[312148581,1705669858323,-500.0,0.00022191,2]
[312148582,1705669858333,-500.0,0.00022191,2]
[312148583,1705669858344,-25482.51,0.00022191,2]
[312148584,1705669858354,-1717.53,0.00022191,2]
[312148585,1705669858364,-500.0,0.00022191,2]
[312148586,1705669858374,-500.0,0.00022191,2]
[312148587,1705669858384,-1264.98,0.00022191,2]
[312148588,1705669858394,-500.0,0.00022191,2]
[312148589,1705669858404,-269.21,0.00022191,2]
[312148590,1705669858414,-746.64,0.00022191,2]
[312148591,1705669858424,-500.0,0.00022191,2]
[312148592,1705669858434,-1739.34,0.00022191,2]
[312148593,1705669858444,-500.0,0.00022191,2]
[312148594,1705669858455,-1153.95,0.00022191,2]
[312148595,1705669858464,-4305.99,0.00022191,2]
[312148596,1705669858474,-1444.66,0.00022191,2]
[312148597,1705669858484,-721.93,0.00022191,2]
[312148598,1705669858494,-1568.86,0.00022191,2]
[312148599,1705669858505,-1301.31,0.00022191,2]
[312148600,1705669858515,-500.0,0.00022191,2]
[312148601,1705669858525,-1193.88,0.00022191,2]
[312148602,1705669858537,-583.97193496,0.00022191,2]
[312148603,1705669858547,-855.93,0.00022191,2]
[312148604,1705669858557,-1184.09,0.00022191,2]
[312148605,1705669858567,-500.0,0.00022191,2]
[312148606,1705669858577,-1441.39,0.00022191,2]
[312148607,1705669858587,-2315.09,0.00022191,2]
[312148608,1705669858598,-2117.61,0.00022191,2]
[312148609,1705669858607,-980.44,0.00022191,2]
[312148610,1705669858617,-2124.5,0.00022191,2]
[312148611,1705669858627,-3846.66,0.00022191,2]
[312148612,1705669858638,-1637.31,0.00022191,2]
[312148613,1705669858648,-513.8,0.00022191,2]
[312148614,1705669858658,-757.52,0.00022191,2]
[312148615,1705669858669,-500.0,0.00022191,2]
[312148616,1705669858679,-500.0,0.00022191,2]
[312148617,1705669858689,-500.0,0.00022191,2]
[312148618,1705669858699,-883.7,0.00022191,2]
[312148619,1705669858710,-1482.25,0.00022191,2]
[312148620,1705669858720,-2977.49,0.00022191,2]
[312148621,1705669858730,-500.0,0.00022191,2]
[312148622,1705669858740,-2766.49,0.00022191,2]
[312148623,1705669858749,-500.0,0.00022191,2]
[312148624,1705669858759,-1781.63,0.00022191,2]
[312148625,1705669858768,-500.0,0.00022191,2]
[312148626,1705669858779,-661.91,0.00022191,2]
[312148627,1705669858790,-660.55,0.00022191,2]
[312148628,1705669858800,-537.32,0.00022191,2]
[312148629,1705669858810,-567.18,0.00022191,2]
[312148630,1705669858820,-500.0,0.00022191,2]
[312148631,1705669858830,-500.0,0.00022191,2]
[312148632,1705669858841,-761.41,0.00022191,2]
[312148633,1705669858851,-857.58,0.00022191,2]
[312148634,1705669858862,-649.92,0.00022191,2]
[312148635,1705669858872,-1153.39,0.00022191,2]
[312148636,1705669858882,-664.67,0.00022191,2]
[312148637,1705669858892,-500.0,0.00022191,2]
[312148638,1705669858902,-2418.64,0.00022191,2]
[312148639,1705669858912,-1464.05,0.00022191,2]
[312148640,1705669858922,-8804.12,0.00022191,2]
[312148641,1705669858932,-4399.62,0.00022191,2]
[312148642,1705669858942,-904.22,0.00022191,2]
[312148643,1705669858952,-500.0,0.00022191,2]
[312148644,1705669858963,-2042.08,0.00022191,2]
[312148645,1705669858973,-1340.55,0.00022191,2]
[312148646,1705669858984,-4233.95,0.00022191,2]
[312148647,1705669858994,-1033.87,0.00022191,2]
[312148648,1705669859005,-1827.3,0.00022191,2]
[312148649,1705669859016,-500.0,0.00022191,2]
[312148650,1705669859026,-760.36,0.00022191,2]
[312148651,1705669859037,-1837.39,0.00022191,2]
[312148652,1705669859047,-1378.23,0.00022191,2]
[312148653,1705669859058,-500.0,0.00022191,2]
[312148654,1705669859068,-500.0,0.00022191,2]
[312148655,1705669859078,-1397.44,0.00022191,2]
[312148656,1705669859088,-2761.46,0.00022191,2]
[312148657,1705669859098,-938.71,0.00022191,2]
[312148658,1705669859108,-1091.57,0.00022191,2]
[312148659,1705669859118,-500.0,0.00022191,2]
[312148660,1705669859128,-511.36,0.00022191,2]
[312148661,1705669859138,-500.0,0.00022191,2]
[312148662,1705669859149,-1145.22,0.00022191,2]
[312148663,1705669859158,-2441.81,0.00022191,2]
[312148664,1705669859168,-2230.55,0.00022191,2]
[312148665,1705669859177,-500.0,0.00022191,2]
[312148666,1705669859187,-4496.97,0.00022191,2]
[312148667,1705669859197,-500.0,0.00022191,2]
[312148668,1705669859207,-500.0,0.00022191,2]
[312148669,1705669859217,-915.54,0.00022191,2]
[312148670,1705669859227,-500.0,0.00022191,2]
[312148671,1705669859238,-1052.49,0.00022191,2]
[312148672,1705669859248,-500.0,0.00022191,2]
[312148673,1705669859259,-999.66,0.00022191,2]
[312148674,1705669859269,-1236.9,0.00022191,2]
[312148675,1705669859279,-1813.55,0.00022191,2]
[312148676,1705669859289,-7568.94,0.00022191,2]
[312148677,1705669859298,-1397.72,0.00022191,2]
[312148678,1705669859308,-715.61,0.00022191,2]
[312148679,1705669859319,-500.0,0.00022191,2]
[312148680,1705669859329,-500.0,0.00022191,2]
[312148681,1705669859340,-735.86,0.00022191,2]
[312148682,1705669859350,-500.0,0.00022191,2]
[312148683,1705669859361,-323.63,0.00022258,2]
[312148684,1705669859371,-162.73,0.00022304,2]
[312148685,1705669859382,-1478.03438221,0.00022305,2]
[312148686,1705669859391,-151.1,0.0002233,2]
[312148687,1705669859402,-150.61,0.00022356,2]
[312148688,1705669859412,-1426.3407386,0.00022359,5]
[312148689,1705669859421,-157.0,0.00022359,2]
[312148690,1705669859432,-1000.0,0.00022365,2]
[312148691,1705669859442,-251.33576022,0.00022365,2]
[312148692,1705669859452,-179.82,0.00022438,2]
[312148693,1705669859463,-815.55,0.00022445,2]
[312148694,1705669859473,-1559.53646814,0.00022464,2]
[312148695,1705669859483,-500.0,0.00022464,2]
[312148696,1705669859493,-500.0,0.00022465,2]
[312148697,1705669859503,-500.0,0.00022465,2]
[312148698,1705669859514,-500.0,0.00022465,2]
[312148699,1705669859524,-500.0,0.00022465,2]
[312148700,1705669859534,-500.0,0.00022465,2]
[312148701,1705669859544,-500.0,0.00022465,2]
[312148702,1705669859554,-500.0,0.00022465,2]
[312148703,1705669859564,-500.0,0.00022465,2]
[312148704,1705669859574,-1166.14,0.00022465,2]
[312148705,1705669859584,-500.0,0.00022465,2]
[312148706,1705669859595,-500.0,0.00022465,2]
[312148707,1705669859605,-636.19,0.00022465,2]
[312148708,1705669859616,-535.61,0.00022465,2]
[312148709,1705669859627,-500.0,0.00022465,2]
[312148710,1705669859637,-500.0,0.00022465,2]
[312148711,1705669859647,-500.0,0.00022465,2]
[312148712,1705669859658,-500.0,0.00022465,2]
[312148713,1705669859667,-881.3,0.00022465,2]
[312148714,1705669859677,-500.0,0.00022465,2]
[312148715,1705669859687,-1150.15,0.00022465,2]
[312148716,1705669859696,-500.0,0.00022465,2]
[312148717,1705669859706,-500.0,0.00022465,2]
[312148718,1705669859716,-500.0,0.00022465,2]
[312148719,1705669859725,-500.0,0.00022465,2]
[312148720,1705669859735,-500.0,0.00022465,2]
[312148721,1705669859745,-500.0,0.00022465,2]
[312148722,1705669859755,-500.0,0.00022465,2]
[312148723,1705669859767,-500.0,0.00022465,2]
[312148724,1705669859778,-500.0,0.00022465,2]
[312148725,1705669859788,-558.96,0.00022465,2]
[312148726,1705669859799,-767.26,0.00022465,2]
[312148727,1705669859810,-500.0,0.00022465,2]
[312148728,1705669859820,-671.71,0.00022465,2]
[312148729,1705669859830,-500.0,0.00022465,2]
[312148730,1705669859841,-500.0,0.00022465,2]
[312148731,1705669859851,-500.0,0.00022465,2]
[312148732,1705669859862,-545.37,0.00022465,2]
[312148733,1705669859874,-500.0,0.00022465,2]
[312148734,1705669859885,-698.53,0.00022465,2]
[312148735,1705669859895,-500.0,0.00022465,2]
[312148736,1705669859905,-500.0,0.00022465,2]
[312148737,1705669859915,-500.0,0.00022465,2]
[312148738,1705669859925,-596.85135189,0.00022465,2]
[312148739,1705669859935,-790.21,0.00022465,2]
[312148740,1705669859945,-500.0,0.00022465,2]
[312148741,1705669859954,-703.41,0.00022465,2]
[312148742,1705669859965,-500.0,0.00022465,2]
[312148743,1705669859975,-500.0,0.00022465,2]
[312148744,1705669859985,-895.32,0.00022465,2]
[312148745,1705669859995,-500.0,0.00022465,2]
[312148746,1705669860005,-500.0,0.00022465,2]
[312148747,1705669860015,-571.69,0.00022465,2]
[312148748,1705669860025,-647.03,0.00022465,2]
[312148749,1705669860038,-500.0,0.00022465,2]
[312148750,1705669860048,-1927.09,0.00022465,2]
[312148751,1705669860057,-500.0,0.00022465,2]
[312148752,1705669860068,-711.44,0.00022465,2]
[312148753,1705669860078,-500.0,0.00022465,2]
[312148754,1705669860089,-528.81219986,0.00022465,2]
[312148755,1705669860099,-739.94,0.00022465,2]
[312148756,1705669860109,-500.0,0.00022465,2]
[312148757,1705669860118,-500.0,0.00022465,2]
[312148758,1705669860128,-1124.59,0.00022465,2]
[312148759,1705669860138,-500.0,0.00022465,2]
[312148760,1705669860149,-882.8,0.00022465,2]
[312148761,1705669860158,-500.0,0.00022465,2]
[312148762,1705669860168,-664.41,0.00022465,2]
[312148763,1705669860178,-507.69,0.00022465,2]
[312148764,1705669860192,-883.64,0.00022465,2]
[312148765,1705669860202,-500.0,0.00022465,2]
[312148766,1705669860211,-1919.81,0.00022465,2]
[312148767,1705669860222,-500.0,0.00022465,2]
[312148768,1705669860232,-500.0,0.00022465,2]
[312148769,1705669860243,-500.0,0.00022465,2]
[312148770,1705669860254,-899.16,0.00022465,2]
[312148771,1705669860264,-744.37,0.00022465,2]
[312148772,1705669860274,-500.0,0.00022465,2]
[312148773,1705669860284,-500.0,0.00022465,2]
[312148774,1705669860294,-648.21,0.00022465,2]
[312148775,1705669860304,-1272.95,0.00022465,2]
[312148776,1705669860314,-902.19,0.00022465,2]
[312148777,1705669860324,-500.0,0.00022465,2]
[312148778,1705669860334,-500.0,0.00022465,2]
[312148779,1705669860347,-500.0,0.00022465,2]
[312148780,1705669860357,-506.72654542,0.00022465,2]
[312148781,1705669860368,-1231.59,0.00022465,2]
[312148782,1705669860378,-648.29,0.00022465,2]
[312148783,1705669860388,-500.0,0.00022465,2]
[312148784,1705669860399,-500.0,0.00022465,2]
[312148785,1705669860409,-500.0,0.00022465,2]
[312148786,1705669860419,-500.0,0.00022465,2]
[312148787,1705669860430,-928.06,0.00022465,2]
[312148788,1705669860440,-500.0,0.00022465,2]
[312148789,1705669860449,-500.0,0.00022465,2]
[312148790,1705669860460,-1262.81,0.00022465,2]
[312148791,1705669860470,-608.03,0.00022465,2]
[312148792,1705669860480,-500.0,0.00022465,2]
[312148793,1705669860489,-500.0,0.00022465,2]
[312148794,1705669860499,-500.0,0.00022465,2]
[312148795,1705669860508,-716.12,0.00022465,2]
[312148796,1705669860518,-563.41,0.00022465,2]
[312148797,1705669860529,-500.0,0.00022465,2]
[312148798,1705669860636,-500.0,0.00022465,2]
[312148799,1705669860646,-500.0,0.00022465,2]
[312148800,1705669860656,-567.47471469,0.00022465,2]
[312148801,1705669860666,-215.19206449,0.00022465,2]
[312148802,1705669860676,-903.17,0.00022465,2]
[312148803,1705669860686,-696.7,0.00022465,2]
[312148804,1705669860696,-1064.15,0.00022465,2]
[312148805,1705669860706,-575.26,0.00022465,2]
[312148806,1705669860717,-539.33,0.00022465,2]
[312148807,1705669860728,-500.34,0.00022465,2]
[312148808,1705669860738,-542.26,0.00022465,2]
[312148809,1705669860747,-500.0,0.00022465,2]
[312148810,1705669860757,-500.0,0.00022465,2]
[312148811,1705669860766,-2012.98,0.00022465,2]
[312148812,1705669860776,-277.65,0.00022465,2]
[312148813,1705669860786,-856.21,0.00022465,2]
[312148814,1705669860798,-684.1,0.00022465,2]
[312148815,1705669860808,-515.06,0.00022465,2]
[312148816,1705669860818,-500.0,0.00022465,2]
[312148817,1705669860828,-814.87,0.00022465,2]
[312148818,1705669860838,-500.0,0.00022465,2]
[312148819,1705669860848,-500.0,0.00022465,2]
[312148820,1705669860858,-500.0,0.00022465,2]
[312148821,1705669860868,-500.0,0.00022465,2]
[312148822,1705669860878,-718.46,0.00022465,2]
[312148823,1705669860888,-500.0,0.00022465,2]
[312148824,1705669860897,-500.0,0.00022465,2]
[312148825,1705669860906,-1408.02,0.00022465,2]
[312148826,1705669860916,-500.0,0.00022465,2]
[312148827,1705669860925,-500.0,0.00022465,2]
[312148828,1705669860935,-500.0,0.00022465,2]
[312148829,1705669860945,-500.0,0.00022465,2]
[312148830,1705669860955,-546.65,0.00022465,2]
[312148831,1705669860966,-841.35,0.00022465,2]
[312148832,1705669860975,-770.59,0.00022465,2]
[312148833,1705669860985,-733.89,0.00022465,2]
[312148834,1705669860994,-769.83,0.00022465,2]
[312148835,1705669861004,-926.17,0.00022465,2]
[312148836,1705669861013,-500.0,0.00022465,2]
[312148837,1705669861025,-680.95,0.00022465,2]
[312148838,1705669861036,-500.0,0.00022465,2]
[312148839,1705669861046,-500.0,0.00022465,2]
[312148840,1705669861055,-622.1,0.00022465,2]
[312148841,1705669861065,-500.0,0.00022465,2]
[312148842,1705669861074,-500.0,0.00022465,2]
[312148843,1705669861084,-315.708122,0.00022465,2]
[312148844,1705669861095,-500.0,0.00022465,2]
[312148845,1705669861105,-500.0,0.00022465,2]
[312148846,1705669861115,-852.32,0.00022465,2]
[312148847,1705669861124,-541.18,0.00022465,2]
[312148848,1705669861134,-774.53,0.00022465,2]
[312148849,1705669861143,-623.89,0.00022465,2]
[312148850,1705669861153,-500.0,0.00022465,2]
[312148851,1705669861162,-910.14,0.00022465,2]
[312148852,1705669861172,-500.0,0.00022465,2]
[312148853,1705669861182,-500.0,0.00022465,2]
[312148854,1705669861192,-918.52,0.00022465,2]
[312148855,1705669861201,-289.78,0.00022465,2]
[312148856,1705669861211,-1225.46,0.00022465,2]
[312148857,1705669861221,-1110.62,0.00022465,2]
[312148858,1705669861231,-500.0,0.00022465,2]
[312148859,1705669861240,-500.0,0.00022465,2]
[312148860,1705669861250,-500.0,0.00022465,2]
[312148861,1705669861259,-500.0,0.00022465,2]
[312148862,1705669861269,-722.75,0.00022465,2]
[312148863,1705669861279,-681.27,0.00022465,2]
[312148864,1705669861289,-720.2,0.00022465,2]
[312148865,1705669861298,-1281.21,0.00022465,2]
[312148866,1705669861308,-960.8,0.00022465,2]
[312148867,1705669861317,-500.0,0.00022465,2]
[312148868,1705669861327,-500.0,0.00022465,2]
[312148869,1705669861336,-1200.27,0.00022465,2]
[312148870,1705669861347,-500.0,0.00022465,2]
[312148871,1705669861357,-996.2,0.00022465,2]
[312148872,1705669861366,-500.0,0.00022465,2]
[312148873,1705669861376,-733.48,0.00022465,2]
[312148874,1705669861385,-717.41,0.00022465,2]
[312148875,1705669861395,-500.0,0.00022465,2]
[312148876,1705669861405,-500.0,0.00022465,2]
[312148877,1705669861414,-567.28,0.00022465,2]
[312148878,1705669861425,-500.0,0.00022465,2]
[312148879,1705669861435,-544.36,0.00022465,2]
[312148880,1705669861445,-500.0,0.00022465,2]
[312148881,1705669861455,-500.0,0.00022465,2]
[312148882,1705669861466,-1000.0,0.00022465,2]
[312148883,1705669861476,-500.0,0.00022465,2]
[312148884,1705669861486,-500.0,0.00022465,2]
[312148885,1705669861496,-508.81,0.00022465,2]
[312148886,1705669861505,-500.0,0.00022465,2]
[312148887,1705669861515,-500.0,0.00022465,2]
[312148888,1705669861524,-500.0,0.00022465,2]
[312148889,1705669861534,-500.0,0.00022465,2]
[312148890,1705669861544,-500.0,0.00022465,2]
[312148891,1705669861554,-418.98090116,0.00022465,2]
[312148892,1705669861563,-685.86,0.00022465,2]
[312148893,1705669861573,-500.0,0.00022465,2]
[312148894,1705669861583,-864.15,0.00022465,2]
[312148895,1705669861594,-500.0,0.00022465,2]
[312148896,1705669861604,-502.08,0.00022465,2]
[312148897,1705669861614,-504.94,0.00022465,2]
[312148898,1705669861624,-854.99,0.00022465,2]
[312148899,1705669861634,-511.65173872,0.00022465,2]
[312148900,1705669861644,-606.04,0.00022465,2]
[312148901,1705669861653,-500.0,0.00022465,2]
[312148902,1705669861663,-851.01,0.00022465,2]
[312148903,1705669861673,-571.27,0.00022465,2]
[312148904,1705669861684,-1336.55,0.00022465,2]
[312148905,1705669861693,-533.63827891,0.00022465,2]
[312148906,1705669861703,-500.0,0.00022465,2]
[312148907,1705669861713,-500.0,0.00022465,2]
[312148908,1705669861723,-500.0,0.00022465,2]
[312148909,1705669861733,-953.61,0.00022465,2]
[312148910,1705669861743,-536.63,0.00022465,2]
[312148911,1705669861753,-500.0,0.00022465,2]
[312148912,1705669861762,-500.0,0.00022465,2]
[312148913,1705669861772,-770.79,0.00022465,2]
[312148914,1705669861783,-662.32,0.00022465,2]
[312148915,1705669861795,-500.0,0.00022465,2]
[312148916,1705669861805,-811.51,0.00022465,2]
[312148917,1705669861815,-500.0,0.00022465,2]
[312148918,1705669861824,-500.0,0.00022465,2]
[312148919,1705669861834,-845.2,0.00022465,2]
[312148920,1705669861845,-500.0,0.00022465,2]
[312148921,1705669861855,-788.16,0.00022465,2]
[312148922,1705669861865,-500.0,0.00022465,2]
[312148923,1705669861877,-653.02,0.00022465,2]
[312148924,1705669861887,-500.0,0.00022465,2]
[312148925,1705669861897,-1258.44,0.00022465,2]
[312148926,1705669861906,-500.0,0.00022465,2]
[312148927,1705669861916,-500.0,0.00022465,2]
[312148928,1705669861926,-500.0,0.00022465,2]
[312148929,1705669861935,-500.0,0.00022465,2]
[312148930,1705669861945,-500.0,0.00022465,2]
[312148931,1705669861955,-500.0,0.00022465,2]
[312148932,1705669861964,-500.0,0.00022465,2]
[312148933,1705669861975,-500.0,0.00022465,2]
[312148934,1705669861984,-500.0,0.00022465,2]
[312148935,1705669861994,-500.0,0.00022465,2]
[312148936,1705669862004,-640.03,0.00022465,2]
[312148937,1705669862013,-769.35,0.00022465,2]
[312148938,1705669862023,-570.39,0.00022465,2]
[312148939,1705669862034,-723.58,0.00022465,2]
[312148940,1705669862043,-1088.57,0.00022465,2]
[312148941,1705669862053,-1400.81,0.00022465,2]
[312148942,1705669862062,-500.0,0.00022465,2]
[312148943,1705669862073,-613.93,0.00022465,2]
[312148944,1705669862082,-500.0,0.00022465,2]
[312148945,1705669862093,-500.0,0.00022465,2]
[312148946,1705669862103,-749.16,0.00022465,2]
[312148947,1705669862113,-739.73,0.00022465,2]
[312148948,1705669862123,-500.0,0.00022465,2]
[312148949,1705669862133,-500.0,0.00022465,2]
[312148950,1705669862142,-1591.86,0.00022465,2]
[312148951,1705669862152,-500.0,0.00022465,2]
[312148952,1705669862161,-520.91,0.00022465,2]
[312148953,1705669862171,-500.0,0.00022465,2]
[312148954,1705669862181,-500.0,0.00022465,2]
[312148955,1705669862190,-500.0,0.00022465,2]
[312148956,1705669862199,-556.82,0.00022465,2]
[312148957,1705669862209,-500.0,0.00022465,2]
[312148958,1705669862219,-500.0,0.00022465,2]
[312148959,1705669862228,-657.02,0.00022465,2]
[312148960,1705669862238,-522.56063986,0.00022465,2]
[312148961,1705669862248,-903.89,0.00022465,2]
[312148962,1705669862258,-1000.86,0.00022465,2]
[312148963,1705669862267,-500.0,0.00022465,2]
[312148964,1705669862278,-619.43,0.00022465,2]
[312148965,1705669862287,-759.91,0.00022465,2]
[312148966,1705669862297,-549.59,0.00022465,2]
[312148967,1705669862307,-500.0,0.00022465,2]
[312148968,1705669862316,-754.71,0.00022465,2]
[312148969,1705669862326,-500.0,0.00022465,2]
[312148970,1705669862336,-971.36,0.00022465,2]
[312148971,1705669862347,-500.0,0.00022465,2]
[312148972,1705669862358,-500.0,0.00022465,2]
[312148973,1705669862367,-1295.82,0.00022465,2]
[312148974,1705669862378,-500.0,0.00022465,7]
[312148975,1705669862387,-500.0,0.00022465,2]
[312148976,1705669862396,-536.32,0.00022465,2]
[312148977,1705669862406,-697.99,0.00022465,2]
[312148978,1705669862416,-637.25,0.00022465,2]
[312148979,1705669862425,-585.76,0.00022465,2]
[312148980,1705669862435,-500.0,0.00022465,2]
[312148981,1705669862445,-508.57,0.00022465,2]
[312148982,1705669862455,-500.0,0.00022465,2]
[312148983,1705669862465,-516.49,0.00022465,2]
[312148984,1705669862474,-500.0,0.00022465,2]
[312148985,1705669862484,-500.0,0.00022465,2]
[312148986,1705669862494,-674.4,0.00022465,2]
[312148987,1705669862504,-1174.25,0.00022465,2]
[312148988,1705669862513,-500.0,0.00022465,2]
[312148989,1705669862523,-500.0,0.00022465,2]
[312148990,1705669862532,-2577.21,0.00022465,2]
[312148991,1705669862542,-551.89,0.00022465,2]
[312148992,1705669862551,-1004.34,0.00022465,2]
[312148993,1705669862560,-500.0,0.00022465,2]
[312148994,1705669862570,-500.0,0.00022465,2]
[312148995,1705669862580,-500.0,0.00022465,2]
[312148996,1705669862590,-595.37,0.00022465,2]
[312148997,1705669862600,-500.0,0.00022465,2]
[312148998,1705669862610,-975.94,0.00022465,2]
[312148999,1705669862620,-1384.81,0.00022465,2]
[312149000,1705669862630,-500.0,0.00022465,2]
[312149001,1705669862641,-300.0,0.00022465,2]
[312149002,1705669862651,-2155.6,0.00022465,2]
[312149003,1705669862661,-500.0,0.00022465,2]
[312149004,1705669862671,-607.66,0.00022465,2]
[312149005,1705669862681,-500.0,0.00022465,2]
[312149006,1705669862690,-993.96,0.00022465,2]
[312149007,1705669862700,-500.0,0.00022465,2]
[312149008,1705669862710,-500.0,0.00022465,2]
[312149009,1705669862720,-500.0,0.00022465,2]
[312149010,1705669862729,-500.0,0.00022465,2]
[312149011,1705669862739,-1491.73,0.00022465,2]
[312149012,1705669862749,-500.0,0.00022465,2]
[312149013,1705669862758,-500.0,0.00022465,2]
[312149014,1705669862768,-500.0,0.00022465,2]
[312149015,1705669862777,-500.0,0.00022465,2]
[312149016,1705669862787,-2597.14,0.00022465,2]
[312149017,1705669862799,-884.11,0.00022465,2]
[312149018,1705669862809,-500.0,0.00022465,2]
[312149019,1705669862818,-702.17,0.00022465,2]
[312149020,1705669862827,-500.0,0.00022465,2]
[312149021,1705669862839,-500.0,0.00022465,2]
[312149022,1705669862849,-1278.53,0.00022465,2]
[312149023,1705669862859,-509.99,0.00022465,2]